Cogmind - Beta 15 @@@ ROGUE MODE // 2025.05.20 @ 10:45:48 Player: Epsilon 11 Result: Destroyed by XS-FIH(R) with Subdweller Machine Gun Performance ------------- Evolutions (0) 0 Regions Visited (3) 600 Robots Destroyed (11) 55 Value Destroyed (221) 221 Prototype IDs (2) 40 Alien Tech Used (0) 0 Bonus (0) 0 TOTAL SCORE: 916 Bonus ------- None Cogmind --------- Core Integrity 0/250 Matter 300/300 Energy 99/100 System Corruption 2% Temperature Cool (0) Movement Rolling (100) Location -10/Subcaves Parts ------- > --- POWER (1) -------- (None) > --- PROPULSION (2) --- Compact Wheel > --- UTILITY (2) ------ Improved Heat Sink Medium Storage Unit > --- WEAPON (2) ------- (None) > --- INVENTORY (10) --- Light Ion Engine Light Treads Light Treads Aluminum Leg Wheel Small Storage Unit Peak State ------------ > --- POWER ------------ Light Ion Engine > --- PROPULSION ------- Aluminum Leg Compact Wheel > --- UTILITY ---------- Improved Heat Sink Medium Storage Unit > --- WEAPON ----------- EM Pulse Gun > --- INVENTORY -------- Light Treads Light Treads Small Storage Unit [Rating: 8] Favorites ----------- Power Light Ion Engine Engine Light Ion Engine Propulsion Compact Wheel Leg Aluminum Leg Wheel Compact Wheel Utility Medium Storage Unit Device Heat Sink Storage Medium Storage Unit Weapon EM Pulse Gun Energy Gun EM Pulse Gun Build | -11 -10 -10 -10 ------- Run | Yrd Mat Min Sub Slots Evolved . | . . . . Power . | . . . . Propulsion . | . . . . Utility . | . . . . Weapon . | . . . . Parts Attached 16 | 6 9 1 . Power 2 | 1 1 . . Engine 2 | 1 1 . . Core . | . . . . Reactor . | . . . . Propulsion 4 | 2 1 1 . Treads . | . . . . Leg 1 | . 1 . . Wheel 3 | 2 . 1 . Hover . | . . . . Flight . | . . . . Utility 4 | 1 3 . . Device 2 | . 2 . . Storage 2 | 1 1 . . Processor . | . . . . Hackware . | . . . . Protection . | . . . . Artifact . | . . . . Weapon 6 | 2 4 . . Energy Gun 6 | 2 4 . . Energy Cannon . | . . . . Ballistic Gun . | . . . . Ballistic Cannon . | . . . . Launcher . | . . . . Special Weapon . | . . . . Impact Weapon . | . . . . Slashing Weapon . | . . . . Piercing Weapon . | . . . . Special Melee Weapon . | . . . . Unidentified Prototypes . | . . . . Parts Lost 11 | . 8 . 3 Power 2 | . 1 . 1 Propulsion 2 | . 1 . 1 Utility 1 | . 1 . . Weapon 6 | . 5 . 1 Highest Loss Streak 5 | . 5 . 3 To Critical Strikes . | . . . . Average Backups 4 | 1 4 3 6 Power . | . . . 1 Propulsion 2 | . 2 2 4 Utility . | . . 1 1 Weapon . | . . . . Tool/Special . | . . . . Unused Backups 4 | . . . 4 Power 1 | . . . 1 Propulsion 3 | . . . 3 Utility . | . . . . Weapon . | . . . . Tool/Special . | . . . . Average Slot Usage (%) 88 | . 90 85 76 Engine 13 | . 13 14 12 Leg 4 | . 4 6 . Wheel 23 | . 23 22 26 Device 10 | . 9 14 14 Storage 14 | . 14 14 14 Energy Gun 20 | . 23 14 8 Peak Build Rating 8 | 6 8 8 8 Average Rating 6 | 4 6 8 7 On Entrance 5 | . 6 8 8 Naked Turns . | . . . . Heaviest Build 18 | 11 18 16 16 Greatest Support 32 | 32 32 26 26 Greatest Overweight (x) 1 | . 1 . . Average Overweight (x) . | . . . . Largest Inventory Capacity 10 | 8 10 10 10 Average Capacity 9 | 7 9 10 10 Most Carried 9 | 3 6 9 9 Average Carried 4 | 1 4 4 7 Final Capacity 10 | 8 10 10 10 Final Carried 9 | 3 3 9 6 Class Distribution -------------------- 100% | Mutant Dominant Class ---------------- Mutant | -10/Materials Mutant | -10/Mines Mutant | -10/Subcaves Resources | -11 -10 -10 -10 ----------- Run | Yrd Mat Min Sub Matter Collected 345 | 249 76 20 . Remotely . | . . . . Salvage Created 431 | . 379 52 . Parts 25 | . 21 4 . Haulers Intercepted . | . . . . Recyclers Shooed . | . . . . Parts Field Recycled . | . . . . Retrieved Matter . | . . . . Parts Self-Destructed . | . . . . Prevented . | . . . . Kills | -11 -10 -10 -10 ------- Run | Yrd Mat Min Sub Combat Hostiles Destroyed 7 | . 7 . . Guns 7 | . 7 . . Classes Destroyed 4 | . 4 . . Worker 3 | . 1 2 . Recycler 1 | . 1 . . Swarmer 3 | . 3 . . Grunt 4 | . 4 . . Best Kill Streak 3 | . 3 1 . Combat Bots Only 3 | . 3 . . Max Kills in Single Turn 1 | . 1 1 . Gunslinging . | . . . . Exploded . | . . . . Melee . | . . . . Uniques/NPCs Destroyed . | . . . . Combat | -11 -10 -10 -10 -------- Run | Yrd Mat Min Sub Hostile Shots Fired 74 | . 54 . 20 Missed 21 | . 14 . 7 Hits 53 | . 40 . 13 Projectile 53 | . 40 . 13 Critical Strikes 1 | . . . 1 Damage Taken 896 | . 602 . 294 Core 251 | . 106 . 145 Absorbed by Shields . | . . . . Core Remaining (%) 100 | 100 . . . Volleys Fired 50 | . 49 1 . Largest 2 | . 2 1 . Hottest 80 | . 80 40 . Shots Fired 76 | . 74 2 . Gun 76 | . 74 2 . Cannon . | . . . . Launcher . | . . . . Special . | . . . . Kinetic . | . . . . Thermal 32 | . 32 . . Explosive . | . . . . Electromagnetic 44 | . 42 2 . Robot Hit Streak 11 | . 11 10 . Robot Miss Streak 4 | . 4 . . Penetration Max . | . . . . Secondary Targets . | . . . . Shots Hit Robots 52 | . 50 2 . Core Hits 18 | . 16 2 . Critical Kills . | . . . . Critical Parts Destroyed . | . . . . Critical Strikes . | . . . . Melee Attacks . | . . . . Impact . | . . . . Slashing . | . . . . Piercing . | . . . . Sneak Attacks . | . . . . Combat Hostiles . | . . . . Follow-up Attacks . | . . . . Damage Inflicted 815 | . 790 25 . Guns 656 | . 631 25 . Cannons . | . . . . Explosions 159 | . 159 . . Melee . | . . . . Ramming . | . . . . Kinetic . | . . . . Thermal 383 | . 383 . . Explosive . | . . . . Electromagnetic 432 | . 407 25 . Impact . | . . . . Slashing . | . . . . Piercing . | . . . . Highest Corruption 2 | . 2 2 2 Average Corruption 2 | . 2 2 2 Corruption Purged . | . . . . Corruption Blocked . | . . . . Effects 5 | . 2 3 . Message Errors 1 | . 1 . . Matter Fused 1 | . 1 . . Heat Flow Errors 2 | . . 2 . Misfires 1 | . . 1 . Overload Shots . | . . . . Overflow Damage 15 | . 15 . . Projectiles . | . . . . Explosions 15 | . 15 . . Melee . | . . . . Knockbacks . | . . . . Impact . | . . . . Kinetic . | . . . . Secondary . | . . . . Self-Inflicted Damage 101 | . 101 . . Shots 2 | . 2 . . Rammed . | . . . . Targets Rammed . | . . . . Kicked . | . . . . Crushed . | . . . . Highest Temperature 178 | . 162 178 . Average Temperature 54 | . 48 92 . Received Heat Transfer 231 | . 231 . . Siege Activations . | . . . . Martial Activations . | . . . . Shielding Activations . | . . . . Robots Disrupted . | . . . . Combat Hostiles . | . . . . Robots Corrupted . | . . . . Combat Hostiles . | . . . . Parts Fried . | . . . . Impact Corruptions . | . . . . Robots Melted . | . . . . Combat Hostiles . | . . . . Parts Melted 1 | . 1 . . Heat Transferred 700 | . 700 . . Parts Sabotaged . | . . . . Parts Stolen . | . . . . Parts Stripped . | . . . . Power Chain Reactions 2 | . 2 . . Alert | -11 -10 -10 -10 ------- Run | Yrd Mat Min Sub Maximum Alert Level . | . . . . Low Security (%) 100 | 100 100 100 . Level 1 . | . . . . Level 2 . | . . . . Level 3 . | . . . . Level 4 . | . . . . Level 5 . | . . . . High Security . | . . . . Max Security . | . . . . Peak Influence 110 | . 110 15 . Initial 15 | . . 15 . Average 29 | . 39 2 . Influence Increases 365 | . 355 10 . Destroy 0b10 Robot/C 140 | . 140 . . Destroy 0b10 Robot/NC 20 | . 10 10 . Destroy Leader 30 | . 30 . . Successful Hack 21 | . 21 . . Disable Machine 30 | . 30 . . Destroy Structure 19 | . 19 . . Lose Combat Pursuer 105 | . 105 . . Influence Decreases 365 | . 314 51 . Entered New Map 26 | . . 26 . Time Decay 273 | . 248 25 . Lost Part 66 | . 66 . . Squads Dispatched . | . . . . Investigation . | . . . . Extermination . | . . . . Reinforcement . | . . . . Assault . | . . . . Garrison . | . . . . Intercept . | . . . . Searches Triggered . | . . . . Construction Impeded . | . . . . Haulers Reinforced . | . . . . Active Scanning Responses . | . . . . Cargo Convoy Interrupts . | . . . . Stealth | -11 -10 -10 -10 --------- Run | Yrd Mat Min Sub Distress Signals 2 | . 2 . . Communications Jammed . | . . . . Distress Signals . | . . . . Times Spotted 22 | . 20 . 2 Peak Tracking Total 4 | . 4 . 2 Tactical Retreats 6 | . 6 . . Traps | -11 -10 -10 -10 ------- Run | Yrd Mat Min Sub Traps Triggered 1 | . 1 . . Indirectly . | . . . . Trap Hack Attempts . | . . . . Triggered . | . . . . Disarmed . | . . . . Reprogrammed . | . . . . Reused 2 | . . . 2 Traps Extracted . | . . . . Installed 3 | . . . 3 Triggered . | . . . . Most Traps Carried 3 | . . 3 3 Machines | -11 -10 -10 -10 ---------- Run | Yrd Mat Min Sub Machines Disabled 2 | . 2 . . Max in Single Turn 1 | . 1 . . Machines Repaired . | . . . . Machines Dismantled . | . . . . Machines Sabotaged . | . . . . Overloaded Fab Kills . | . . . . Hacking | -11 -10 -10 -10 --------- Run | Yrd Mat Min Sub Machines Accessed 7 | . 7 . . Terminals 6 | . 6 . . Fabricators . | . . . . Repair Stations . | . . . . Recycling Units 1 | . 1 . . Scanalyzers . | . . . . Garrison Access . | . . . . Total Hacks 19 | . 19 . . Successful 7 | . 7 . . Failed 11 | . 11 . . Catastrophic 1 | . 1 . . Database Lockouts 1 | . 1 . . Manual 6 | . 6 . . Terminals 18 | . 18 . . Fabricators . | . . . . Repair Stations . | . . . . Recycling Units 1 | . 1 . . Scanalyzers . | . . . . Garrison Access . | . . . . Terminal Hacks 6 | . 6 . . Robot Analysis 1 | . 1 . . Prototype ID Bank 1 | . 1 . . Locate Traps 2 | . 2 . . Security Status 1 | . 1 . . Hauler Manifests 1 | . 1 . . Fabricator Hacks . | . . . . Repair Station Hacks . | . . . . Recycling Unit Hacks 1 | . 1 . . Report Inventory 1 | . 1 . . Scanalyzer . | . . . . Garrison Access Hacks . | . . . . Unauthorized Hacks . | . . . . Terminals . | . . . . Fabricators . | . . . . Repair Stations . | . . . . Recycling Units . | . . . . Scanalyzers . | . . . . Garrison Access . | . . . . Data Cores Recovered . | . . . . Used . | . . . . Hacking Detections 6 | . 6 . . Full Trace Events . | . . . . Feedback Events . | . . . . Feedback Blocked . | . . . . Robot Schematics Acquired . | . . . . Robots Built . | . . . . Authchips . | . . . . Time . | . . . . Total Robot Build Rating . | . . . . Part Schematics Acquired . | . . . . Parts Built . | . . . . Authchips . | . . . . Time . | . . . . Total Part Build Rating . | . . . . Parts Repaired . | . . . . Time . | . . . . Parts Recycled . | . . . . Recycled Matter . | . . . . Retrieved Matter . | . . . . Retrieved Components . | . . . . Parts Scanalyzed . | . . . . Part Schematics Acquired . | . . . . Parts Damaged . | . . . . Bothacking | -11 -10 -10 -10 ------------ Run | Yrd Mat Min Sub Used RIF Installer . | . . . . Robots Hacked . | . . . . Non-combat . | . . . . Combat . | . . . . Robot Hacks Applied . | . . . . Relay Couplers Released . | . . . . Fabnet Peak Effective % . | . . . . Robots Rewired . | . . . . Allies Hacked . | . . . . Hacks Repelled . | . . . . Allies | -11 -10 -10 -10 -------- Run | Yrd Mat Min Sub Total Allies . | . . . . Largest Group . | . . . . Highest-Rated Group . | . . . . Highest-Rated Ally . | . . . . Total Orders . | . . . . Ally Attacks . | . . . . Total Damage . | . . . . Kills . | . . . . Allies Corrupted . | . . . . Allies Melted . | . . . . Intel | -11 -10 -10 -10 ------- Run | Yrd Mat Min Sub Active Infowar (turns) . | . . . . Robot Analysis Total 1 | . 1 . . Derelict Logs Recovered . | . . . . Drone Launches . | . . . . Drone Recoveries . | . . . . Exploration | -11 -10 -10 -10 ------------- Run | Yrd Mat Min Sub Turns Passed 1079 | 57 744 207 71 Spaces Moved 873 | 46 554 210 63 Core 1 | 1 . . . Treads . | . . . . Legs . | . . . . Wheels 872 | 45 554 210 63 Hover . | . . . . Flight . | . . . . Fastest Speed 50 | 50 100 90 90 Average Speed 98 | 98 100 93 91 Slowest Speed 115 | 100 115 100 100 Overloaded Moves . | . . . . Propulsion Burnouts . | . . . . Robots Hopped . | . . . . Potential Cave-ins . | . . . . Cave-ins Triggered . | . . . . Exploration Rate (%) 34 | 3 82 49 3 Regions Visited 3 Branch Regions 2 Pre-discovered Areas . | . . . . Known Exits Taken . | . . . . Unknown Exits Taken 3 | 1 1 1 . Scrap Searched . | . . . . Spaces Dug . | . . . . Terrain Destroyed 20 | . 20 . . Melee . | . . . . Projectile . | . . . . AOE 20 | . 20 . . Terrain Rammed . | . . . . Walls Destroyed . | . . . . Machines Disabled . | . . . . Actions | -11 -10 -10 -10 --------- Run | Yrd Mat Min Sub Total 1013 | 54 664 217 78 Wait 59 | . 50 . 9 Move 870 | 45 553 209 63 Hop . | . . . . Pick Up 11 | 3 3 5 . Fast Attach 11 | 6 5 . . Attach 3 | . 3 . . Detach . | . . . . Swap 3 | . 1 2 . Drop 3 | . . . 3 Fire 50 | . 49 1 . Melee . | . . . . Ram . | . . . . Kick . | . . . . Crush . | . . . . Escape Stasis . | . . . . Rewire . | . . . . Trap 3 | . . . 3 Miscellaneous . | . . . . Route ------- -11/Scrapyard -10/Materials (discovered 3 exits: [*Mat x2] / [*Min]) -10/Mines (discovered 2 exits: [*Mat] / [*Sub]) -10/Subcaves History --------- Turn | Location | Event 26 | -11/Scrapyard | Discovered new exit (range 15) 58 | -11/Scrapyard | Entered Materials 228 | -10/Materials | Discovered new exit (range 16) 309 | -10/Materials | Build established: Mutant 401 | -10/Materials | Central database locked down 420 | -10/Materials | Discovered new exit (range 10) 593 | -10/Materials | Lost 5 parts (1p1n3w) 756 | -10/Materials | Discovered new exit (range 12) 802 | -10/Materials | Entered Mines 848 | -10/Mines | Discovered new exit (range 11) 957 | -10/Mines | Found a hidden stash of uninstalled traps 986 | -10/Mines | Discovered new exit (range 6) 1009 | -10/Mines | Entered Subcaves 1057 | -10/Subcaves | Core integrity fell below 50% 1075 | -10/Subcaves | Core integrity fell below 20% 1080 | -10/Subcaves | Destroyed by XS-FIH(R) with Subdweller Machine Gun Last Messages --------------- 00974_ Acquired Lgt. Ion Engine. 00983_ T-07 Excavator is excavating. 00986_ EXIT=FOUND 00987_ T-07 Excavator is excavating. LOCATION=UNKNOWN AMBIENT_HEAT=-10 GOAL=ESCAPE 01010_ F7-L5P(u) builds Twisted Machinery. 01033_ Dropped Proton Bomb Trap. 01033_ Installed Proton Bomb Trap. 01043_ Dropped Proton Bomb Trap. 01043_ Installed Proton Bomb Trap. 01049_ XS-FIH(R) triggered Proton Bomb Trap. 01049_ A bubble of electromagnetic force engulfs the area. 01051_ Dropped Proton Bomb Trap. 01051_ Installed Proton Bomb Trap. 01052_ EM Pulse Gun destroyed. 01052_ 6A-UAX(R) IFF system glitched. 01071_ Wheel destroyed. 01075_ Lgt. Ion Engine destroyed. Map ----- +----------------------------------------------------+ | | | | | | | | | | | | | ?????????????????????????????????????????????????? | | ?????????????????????????????????????????????????? | | ?????????????????????????????????????????????????? | | ?????????????????????????????????????????????????? | | ?????????????????????????????????????????????????? | | ?????????????????????????????????????????????????? | | ?????????????????????????????????????????????????? | | ?????????????????????????????????????????????????? | | ?????????????????????????????????????????????????? | | ?????????????????????????????????????????????????? | | ?????????????????????????????????????????????????? | | ?????????????????????????????????????????????????? | | ?????????????????????????????????????????????????? | | ?????????????????????????????????????????????????? | | ????????????#######??????????????????????????????? | | ?????????#### ##?????????########????????????? | | ?????????# ######???##""" " ##???????????? | | ????????# ##??#""" """"#???????????? | | #????## # R^ ##??#" #???????????? | | #??# ## R @#### #???????????? | | ???# # # ###### #^""##???????????? | | ???# "" ##????## ####" "" ?????????? | | ???# """"" ###??????# ##??#" "" ????????? | | # ""######????????## #???### # ##????????? | | # "#???????????????#####??????###? #????????? | | ## ?????????????????????????????????#????????? | | ?#####???????????????????????????????????????????? | | ?????????????????????????????????????????????????? | | ?????????????????????????????????????????????????? | | ?????????????????????????????????????????????????? | | ?????????????????????????????????????????????????? | | ?????????????????????????????????????????????????? | | ?????????????????????????????????????????????????? | | ?????????????????????????????????????????????????? | | ?????????????????????????????????????????????????? | | ?????????????????????????????????????????????????? | | ?????????????????????????????????????????????????? | | ?????????????????????????????????????????????????? | | ?????????????????????????????????????????????????? | | ?????????????????????????????????????????????????? | | ?????????????????????????????????????????????????? | | ?????????????????????????????????????????????????? | | ?????????????????????????????????????????????????? | | ?????????????????????????????????????????????????? | +----------------------------------------------------+ Best States ------------- Heat Dissipation 39 Energy Generation 10 Energy Capacity 125 Matter Stores 300 Matter Capacity 300 Sight Range 16 Terrain Scan Density 10 Evasion (%) 42 Item Schematics ----------------- None Robot Schematics ------------------ None Fabricated ------------ Nothing Repaired ---------- Nothing Alien Tech Used ----------------- None Achievements -------------- None Challenges ------------ None Game ------ Seed GhostCombatBasin Manual? 0 Play Time 00:12:33 Cumulative 266.9 hours Start 2025.05.20 @ 10:34:37 End 2025.05.20 @ 10:45:48 Sessions 1 Manual Loads 0 Difficulty Rogue Special Mode None Game No. 125 Rogue 82 Adventurer 43 Explorer 0 Win Type - Total 6 Types 4/0/1/0/0/0/0/1/0/0 Lore% 75 Gallery% 69 Achievement% 64 Wizard Run 0 Options --------- Layout 0 ASCII 0 Keyboard 0 Movement Numpad Keybinds 0 Fullscreen 1 Font 24/Smallcaps Map View 76x50 Zoom Use 0% Tactical HUD 1 Map Filters NONE Filters NONE Steam 1 RUN: cb8aa68c-3b5b-4ee2-baaf-dd4aca7da0f3